fUST/lending_fUST_20250616
["ID","MTS","AMOUNT","RATE_DAILY","PERIOD"]
[366107089,1750067438649,-410.0,0.00021917,4]
[366107090,1750067438662,-489.68253041,0.00021917,4]
[366107091,1750067438676,-475.06123768,0.00021917,4]
[366107092,1750067438831,-435.27918428,0.00021917,4]
[366107093,1750067438859,-460.0,0.00021917,4]
[366107094,1750067438870,-460.0,0.00021917,4]
[366107095,1750067438880,-460.0,0.00021917,4]
[366107096,1750067438890,-460.0,0.00021917,4]
[366107097,1750067438900,-460.0,0.00021917,4]
[366107098,1750067438909,-460.0,0.00021917,4]
[366107099,1750067438919,-460.0,0.00021917,4]
[366107100,1750067438928,-460.0,0.00021917,4]
[366107101,1750067438938,-460.0,0.00021917,4]
[366107102,1750067438948,-460.0,0.00021917,4]
[366107103,1750067438957,-427.21930375,0.00021917,4]
[366107104,1750067438967,-462.35027354,0.00021917,4]
[366107105,1750067438977,-460.0,0.00021917,4]
[366107106,1750067438987,-460.0,0.00021917,4]
[366107107,1750067438997,-462.64348192,0.00021917,4]
[366107108,1750067439007,-440.0,0.00021917,4]
[366107109,1750067439016,-460.0,0.00021917,4]
[366107110,1750067439026,-460.0,0.00021917,4]
[366107111,1750067439036,-186.11544116,0.00021917,4]
[366107112,1750067439046,-460.0,0.00021917,4]
[366107113,1750067439056,-460.0,0.00021917,4]
[366107114,1750067439066,-440.0,0.00021917,4]
[366107115,1750067439079,-460.0,0.00021917,4]
[366107116,1750067439089,-460.0,0.00021917,4]
[366107117,1750067439098,-460.0,0.00021917,4]
[366107118,1750067439108,-460.0,0.00021917,4]
[366107119,1750067439118,-1112.77,0.00021917,4]
[366107120,1750067439127,-460.0,0.00021917,4]
[366107121,1750067439137,-460.0,0.00021917,4]
[366107122,1750067439147,-460.0,0.00021917,4]
[366107123,1750067439157,-460.0,0.00021917,4]
[366107124,1750067439166,-460.0,0.00021917,4]
[366107125,1750067439176,-460.0,0.00021917,4]
[366107126,1750067439186,-460.0,0.00021917,4]
[366107127,1750067439195,-440.87784332,0.00021917,4]
[366107128,1750067439205,-460.0,0.00021917,4]
[366107129,1750067439215,-460.0,0.00021917,4]
[366107130,1750067439224,-460.0,0.00021917,4]
[366107131,1750067439234,-423.99127336,0.00021917,4]
[366107132,1750067439243,-460.0,0.00021917,4]
[366107133,1750067439253,-460.0,0.00021917,4]
[366107134,1750067439262,-460.00754085,0.00021917,4]
[366107135,1750067439271,-460.0,0.00021917,4]
[366107136,1750067439280,-469.22280728,0.00021917,4]
[366107137,1750067439290,-460.0,0.00021917,4]
[366107138,1750067439299,-460.0,0.00021917,4]
[366107139,1750067439309,-874.2,0.00021917,4]
[366107140,1750067439319,-410.0,0.00021917,4]
[366107141,1750067439328,-460.0,0.00021917,4]
[366107142,1750067439338,-460.0,0.00021917,4]
[366107143,1750067439348,-460.0,0.00021917,4]
[366107144,1750067439358,-440.0,0.00021917,4]
[366107145,1750067439368,-353.49443933,0.00021917,4]
[366107146,1750067439380,-182.27236536,0.00021917,4]
[366107147,1750067439390,-460.0,0.00021917,4]
[366107148,1750067439400,-460.0,0.00021917,4]
[366107149,1750067439409,-460.0,0.00021917,4]
[366107150,1750067439420,-460.0,0.00021917,4]
[366107151,1750067439429,-460.0,0.00021917,4]
[366107152,1750067439440,-460.0,0.00021917,4]
[366107153,1750067439450,-460.0,0.00021917,4]
[366107154,1750067439459,-462.73255739,0.00021917,4]
[366107155,1750067439468,-420.0,0.00021917,4]
[366107156,1750067439478,-460.0,0.00021917,4]
[366107157,1750067439488,-460.0,0.00021917,4]
[366107158,1750067439497,-460.0,0.00021917,4]
[366107159,1750067439507,-460.0,0.00021917,4]
[366107160,1750067439517,-465.1499809,0.00021917,4]
[366107161,1750067439526,-464.98705138,0.00021917,4]
[366107162,1750067439536,-460.0,0.00021917,4]
[366107163,1750067439546,-460.0,0.00021917,4]
[366107164,1750067439555,-465.30738158,0.00021917,4]
[366107165,1750067439565,-460.0,0.00021917,4]
[366107166,1750067439575,-469.33883381,0.00021917,4]
[366107167,1750067439584,-460.0,0.00021917,4]
[366107168,1750067439594,-460.0,0.00021917,4]
[366107169,1750067439604,-460.0,0.00021917,4]
[366107170,1750067439614,-151.0,0.00021917,2]
[366107171,1750067439623,-460.0,0.00021917,4]
[366107172,1750067439633,-462.47499441,0.00021917,4]
[366107173,1750067439645,-650.5,0.00021917,4]
[366107174,1750067439654,-460.0,0.00021917,4]
[366107175,1750067439663,-460.0,0.00021917,4]
[366107176,1750067439673,-460.0,0.00021917,4]
[366107177,1750067439682,-460.0,0.00021917,4]
[366107178,1750067439692,-460.0,0.00021917,4]
[366107179,1750067439701,-460.0,0.00021917,4]
[366107180,1750067439712,-410.0,0.00021917,4]
[366107181,1750067439722,-460.0,0.00021917,4]
[366107182,1750067439731,-177.7908538,0.00021918,2]
[366107183,1750067439741,-809.93,0.00021922,7]
[366107184,1750067439750,-151.0,0.00021969,7]
[366107185,1750067439760,-198.349583,0.00021969,7]
[366107186,1750067439769,-198.349583,0.00021969,7]
[366107187,1750067439780,-160.36119306,0.00021973,2]
[366107188,1750067439790,-500.0,0.00021973,2]
[366107189,1750067439800,-485.34839252,0.00021973,2]
[366107190,1750067439810,-500.0,0.00021973,2]
[366107191,1750067439819,-323.57026451,0.00021973,2]
[366107192,1750067439829,-500.34784896,0.00021973,2]
[366107193,1750067439839,-500.0,0.00021973,2]
[366107194,1750067439850,-500.0,0.00021973,2]
[366107195,1750067439860,-500.0,0.00021973,2]
[366107196,1750067439870,-500.0,0.00021973,2]
[366107197,1750067439879,-504.14328316,0.00021973,2]
[366107198,1750067439890,-500.0,0.00021973,2]
[366107200,1750067439900,-500.0,0.00021973,2]
[366107202,1750067439909,-500.0,0.00021973,2]
[366107204,1750067439920,-243.94881655,0.00021973,2]
[366107205,1750067439929,-224.80073573,0.00021973,2]
[366107206,1750067439939,-500.0,0.00021973,2]
[366107207,1750067439949,-411.73137713,0.00021973,2]
[366107208,1750067439958,-275.72868,0.00021973,7]
[366107209,1750067439968,-275.72868,0.00021973,7]
[366107210,1750067439977,-207.79872993,0.00022,2]
[366107212,1750067439987,-166.0,0.00022,2]
[366107214,1750067439996,-174.0,0.00022,2]
[366107216,1750067440006,-809.93,0.00022035,7]
[366107218,1750067440016,-769.77043432,0.00022038,6]
[366107220,1750067440026,-163.96703032,0.00022091,2]
[366107222,1750067440036,-809.93,0.00022147,7]
[366107224,1750067440046,-1277.663851,0.00022163,2]
[366107226,1750067440056,-293.389818,0.00022163,7]
[366107228,1750067440066,-293.389818,0.00022163,7]
[366107230,1750067440079,-25000.0,0.00022163,2]
[366107232,1750067440089,-151.0,0.00022164,7]
[366107234,1750067440098,-151.0,0.00022164,7]
[366107235,1750067440108,-151.0,0.00022164,7]
[366107236,1750067440119,-501.69403857,0.00022173,2]
[366107237,1750067440129,-635.84310012,0.00022173,2]
[366107239,1750067440138,-500.0,0.00022173,2]
[366107241,1750067440149,-200.52773835,0.0002219,2]
[366107242,1750067440159,-21548.06110655,0.0002219,2]
[366107243,1750067440169,-40432.83001844,0.0002219,2]
[366107244,1750067440179,-151.0,0.00022191,7]
[366107245,1750067440190,-197.997295,0.00022191,7]
[366107247,1750067440200,-151.0,0.00022191,7]
[366107249,1750067440210,-229.195013,0.00022191,7]
[366107250,1750067440219,-162.392051,0.00022191,7]
[366107251,1750067440229,-198.349583,0.00022191,7]
[366107252,1750067440239,-198.349583,0.00022191,7]
[366107253,1750067440248,-198.349583,0.00022191,7]
[366107254,1750067440258,-198.349583,0.00022191,7]
[366107255,1750067440267,-182.6124,0.00022191,7]
[366107256,1750067440277,-182.6124,0.00022191,7]
[366107257,1750067440288,-182.6124,0.00022191,7]
[366107258,1750067440298,-182.6124,0.00022191,7]
[366107259,1750067440308,-151.0,0.00022191,7]
[366107260,1750067440317,-151.0,0.00022191,7]
[366107261,1750067440326,-235.31253788,0.00022191,4]
[366107262,1750067440336,-460.0,0.00022191,4]
[366107263,1750067440345,-460.88612342,0.00022191,4]
[366107264,1750067440355,-460.0,0.00022191,4]
[366107265,1750067440364,-1277.663851,0.00022191,2]
[366107266,1750067440373,-1277.663851,0.00022191,2]
[366107267,1750067440384,-460.0,0.00022191,4]
[366107268,1750067440393,-471.12,0.00022191,4]
[366107269,1750067440403,-460.0,0.00022191,4]
[366107270,1750067440413,-446.45260583,0.00022191,4]
[366107272,1750067440422,-151.0,0.00022191,7]
[366107273,1750067440432,-151.0,0.00022191,7]
[366107274,1750067440441,-151.0,0.00022191,7]
[366107275,1750067440451,-151.0,0.00022191,7]
[366107276,1750067440460,-274.55659888,0.00022191,4]
[366107277,1750067440470,-223.40042319,0.00022191,4]
[366107278,1750067440480,-460.0,0.00022191,4]
[366107279,1750067440489,-399.42661617,0.00022191,4]
[366107280,1750067440499,-412.33724672,0.00022191,4]
[366107281,1750067440509,-460.0,0.00022191,4]
[366107282,1750067440518,-460.0,0.00022191,4]
[366107283,1750067440528,-470.33344409,0.00022191,4]
[366107284,1750067440540,-460.0,0.00022191,4]
[366107285,1750067440550,-151.0,0.00022191,7]
[366107286,1750067440560,-151.0,0.00022191,7]
[366107287,1750067440570,-151.0,0.00022191,7]
[366107288,1750067440579,-151.0,0.00022191,7]
[366107289,1750067440588,-460.0,0.00022191,4]
[366107290,1750067440598,-460.0,0.00022191,4]
[366107291,1750067440608,-260.56839692,0.00022191,4]
[366107292,1750067440617,-463.10017045,0.00022191,4]
[366107293,1750067440627,-221.27918365,0.00022191,4]
[366107294,1750067440637,-460.0,0.00022191,4]
[366107295,1750067440647,-460.0,0.00022191,4]
[366107296,1750067440656,-438.94153873,0.00022191,4]
[366107297,1750067440666,-460.0,0.00022191,4]
[366107298,1750067440675,-460.0,0.00022191,4]
[366107299,1750067440685,-460.0,0.00022191,4]
[366107300,1750067440694,-460.0,0.00022191,2]
[366107301,1750067440704,-366.28179356,0.00022191,4]
[366107302,1750067440713,-549.05542173,0.00022191,4]
[366107303,1750067440723,-460.0,0.00022191,4]
[366107304,1750067440732,-466.81445133,0.00022191,4]
[366107305,1750067440742,-460.0,0.00022191,4]
[366107306,1750067440753,-460.0,0.00022191,4]
[366107307,1750067440764,-460.0,0.00022191,4]
[366107308,1750067440774,-460.0,0.00022191,4]
[366107309,1750067440785,-452.26964847,0.00022191,4]
[366107310,1750067440794,-460.0,0.00022191,4]
[366107311,1750067440804,-251.42308909,0.00022191,4]
[366107312,1750067440814,-220.1252963,0.00022191,4]
[366107313,1750067440824,-460.0,0.00022191,4]
[366107314,1750067440833,-190.0,0.00022191,4]
[366107315,1750067440843,-498.51798065,0.00022191,4]
[366107316,1750067440853,-460.0,0.00022191,4]
[366107317,1750067440863,-556.44085309,0.00022191,4]
[366107318,1750067440872,-460.0,0.00022191,4]
[366107319,1750067440882,-460.0,0.00022191,4]
[366107320,1750067440891,-477.97174027,0.00022191,4]
[366107321,1750067440900,-460.0,0.00022191,4]
[366107322,1750067440910,-460.0,0.00022191,4]
[366107323,1750067440920,-204.40349047,0.00022191,4]
[366107324,1750067440929,-460.0,0.00022191,4]
[366107325,1750067440939,-460.0,0.00022191,4]
[366107326,1750067440948,-460.0,0.00022191,4]
[366107327,1750067440958,-460.0,0.00022191,4]
[366107328,1750067440967,-460.0,0.00022191,4]
[366107329,1750067440977,-460.0,0.00022191,4]
[366107330,1750067440986,-460.0,0.00022191,4]
[366107331,1750067440996,-462.6392093,0.00022191,4]
[366107332,1750067441006,-460.0,0.00022191,4]
[366107333,1750067441015,-460.0,0.00022191,4]
[366107334,1750067441025,-460.0,0.00022191,4]
[366107335,1750067441035,-460.0,0.00022191,4]
[366107336,1750067441044,-460.0,0.00022191,4]
[366107337,1750067441054,-460.0,0.00022191,4]
[366107338,1750067441064,-460.0,0.00022191,4]
[366107339,1750067441078,-460.0,0.00022191,4]
[366107340,1750067441088,-460.0,0.00022191,4]
[366107341,1750067441097,-460.0,0.00022191,4]
[366107342,1750067441107,-460.0,0.00022191,4]
[366107343,1750067441118,-460.0,0.00022191,4]
[366107344,1750067441127,-370.0,0.00022191,4]
[366107345,1750067441137,-460.0,0.00022191,4]
[366107346,1750067441147,-151.0,0.00022191,7]
[366107347,1750067441157,-151.0,0.00022191,7]
[366107348,1750067441289,-460.0,0.00022191,4]
[366107349,1750067441299,-424.36143042,0.00022191,4]
[366107350,1750067441309,-439.48035755,0.00022191,4]
[366107351,1750067441318,-551.51486946,0.00022191,4]
[366107352,1750067441327,-460.0,0.00022191,4]
[366107353,1750067441336,-460.0,0.00022191,4]
[366107354,1750067441346,-590.65,0.00022191,2]
[366107355,1750067441355,-460.0,0.00022191,4]
[366107356,1750067441365,-460.0,0.00022191,4]
[366107357,1750067441374,-460.0,0.00022191,4]
[366107358,1750067441384,-460.0,0.00022191,4]
[366107359,1750067441393,-420.88571535,0.00022191,4]
[366107360,1750067441402,-460.0,0.00022191,4]
[366107361,1750067441412,-410.0,0.00022191,4]
[366107362,1750067441421,-422.35595763,0.00022191,4]
[366107363,1750067441430,-460.0,0.00022191,4]
[366107364,1750067441439,-460.0,0.00022191,4]
[366107365,1750067441448,-460.0,0.00022191,4]
[366107366,1750067441457,-460.0,0.00022191,4]
[366107367,1750067441466,-460.0,0.00022191,4]
[366107368,1750067441475,-460.0,0.00022191,4]
[366107369,1750067441484,-460.0,0.00022191,4]
[366107370,1750067441494,-480.7731394,0.00022191,4]
[366107371,1750067441503,-460.0,0.00022191,4]
[366107372,1750067441512,-248.34,0.00022191,4]
[366107373,1750067441522,-431.12056351,0.00022191,4]
[366107374,1750067441532,-460.0,0.00022191,4]
[366107375,1750067441541,-440.0,0.00022191,4]
[366107376,1750067441550,-460.0,0.00022191,4]
[366107377,1750067441559,-460.0,0.00022191,4]
[366107378,1750067441569,-460.0,0.00022191,4]
[366107379,1750067441578,-460.0,0.00022191,4]
[366107380,1750067441587,-448.35475207,0.00022191,4]
[366107381,1750067441596,-215.46648476,0.00022191,4]
[366107382,1750067441606,-460.0,0.00022191,4]
[366107383,1750067441615,-460.0,0.00022191,4]
[366107384,1750067441624,-593.26874482,0.00022191,4]
[366107385,1750067441634,-463.52783984,0.00022191,4]
[366107386,1750067441644,-540.0,0.00022191,4]
[366107387,1750067441654,-460.0,0.00022191,4]
[366107388,1750067441663,-460.0,0.00022191,4]
[366107389,1750067441673,-344.80301944,0.00022191,4]
[366107390,1750067441682,-561.81176251,0.00022191,4]
[366107391,1750067441691,-430.0,0.00022191,4]
[366107392,1750067441700,-460.0,0.00022191,4]
[366107393,1750067441709,-460.0,0.00022191,4]
[366107394,1750067441719,-377.25318973,0.00022191,4]
[366107395,1750067441728,-460.0,0.00022191,4]
[366107396,1750067441738,-1171.34,0.00022191,4]
[366107397,1750067441747,-381.51447888,0.00022191,4]
[366107398,1750067441757,-460.0,0.00022191,4]
[366107399,1750067441766,-460.0,0.00022191,4]
[366107400,1750067441775,-460.0,0.00022191,4]
[366107401,1750067441785,-460.0,0.00022191,4]
[366107402,1750067441795,-460.0,0.00022191,4]
[366107403,1750067441804,-460.0,0.00022191,4]
[366107404,1750067441813,-486.22016368,0.00022191,4]
[366107405,1750067441823,-460.0,0.00022191,4]
[366107406,1750067441832,-460.0,0.00022191,4]
[366107407,1750067441842,-460.0,0.00022191,4]
[366107408,1750067441851,-460.0,0.00022191,4]
[366107409,1750067441861,-460.0,0.00022191,4]
[366107410,1750067441871,-460.0,0.00022191,4]
[366107411,1750067441880,-660.81,0.00022191,4]
[366107412,1750067441891,-500.0,0.00022191,4]
[366107413,1750067441901,-977.33,0.00022191,4]
[366107414,1750067441911,-380.0,0.00022191,4]
[366107415,1750067441921,-460.0,0.00022191,4]
[366107416,1750067441931,-760.03,0.00022191,4]
[366107417,1750067441940,-1108.41,0.00022191,4]
[366107418,1750067441949,-460.0,0.00022191,4]
[366107419,1750067441958,-460.0,0.00022191,4]
[366107420,1750067441968,-460.0,0.00022191,4]
[366107421,1750067441977,-460.0,0.00022191,4]
[366107422,1750067441987,-460.0,0.00022191,4]
[366107423,1750067441996,-460.0,0.00022191,4]
[366107424,1750067442005,-400.0,0.00022191,2]
[366107425,1750067442014,-460.0,0.00022191,4]
[366107426,1750067442024,-460.0,0.00022191,4]
[366107427,1750067442033,-460.0,0.00022191,4]
[366107428,1750067442043,-558.52,0.00022191,4]
[366107429,1750067442052,-460.0,0.00022191,4]
[366107430,1750067442061,-460.0,0.00022191,4]
[366107431,1750067442080,-460.0,0.00022191,4]
[366107432,1750067442090,-460.0,0.00022191,4]
[366107433,1750067442099,-460.0,0.00022191,4]
[366107434,1750067442108,-460.0,0.00022191,4]
[366107435,1750067442118,-460.0,0.00022191,4]
[366107436,1750067442128,-460.0,0.00022191,4]
[366107437,1750067442137,-460.0,0.00022191,4]
[366107438,1750067442147,-430.80951351,0.00022191,4]
[366107439,1750067442156,-460.0,0.00022191,4]
[366107440,1750067442166,-460.0,0.00022191,4]
[366107441,1750067442175,-460.0,0.00022191,4]
[366107442,1750067442184,-490.54,0.00022191,4]
[366107443,1750067442194,-460.0,0.00022191,4]
[366107444,1750067442203,-293.389818,0.00022191,7]
[366107445,1750067442213,-293.389818,0.00022191,7]
[366107446,1750067442222,-151.0,0.00022191,7]
[366107447,1750067442231,-151.0,0.00022191,7]
[366107448,1750067442241,-460.0,0.00022191,4]
[366107449,1750067442250,-460.0,0.00022191,4]
[366107450,1750067442259,-293.389818,0.00022191,7]
[366107451,1750067442269,-293.389818,0.00022191,7]
[366107452,1750067442278,-460.0,0.00022191,4]
[366107453,1750067442287,-460.0,0.00022191,4]
[366107454,1750067442297,-460.0,0.00022191,4]
[366107455,1750067442306,-408.46524953,0.00022191,4]
[366107456,1750067442316,-460.0,0.00022191,4]
[366107457,1750067442325,-460.0,0.00022191,4]
[366107458,1750067442335,-460.0,0.00022191,4]
[366107459,1750067442344,-460.0,0.00022191,4]
[366107460,1750067442354,-460.0,0.00022191,4]
[366107461,1750067442363,-460.0,0.00022191,4]
[366107462,1750067442372,-460.0,0.00022191,4]
[366107463,1750067442382,-460.0,0.00022191,4]
[366107464,1750067442391,-275.72868,0.00022191,7]
[366107465,1750067442400,-275.72868,0.00022191,7]
[366107466,1750067442409,-213.36025772,0.00022191,7]
[366107467,1750067442418,-460.0,0.00022191,4]
[366107468,1750067442428,-460.0,0.00022191,4]
[366107469,1750067442437,-460.0,0.00022191,4]
[366107470,1750067442447,-460.0,0.00022191,4]
[366107471,1750067442456,-460.0,0.00022191,4]
[366107472,1750067442465,-275.72868,0.00022191,7]
[366107473,1750067442475,-275.72868,0.00022191,7]
[366107474,1750067442484,-460.0,0.00022191,4]
[366107475,1750067442493,-460.0,0.00022191,4]
[366107476,1750067442503,-460.0,0.00022191,4]
[366107477,1750067442512,-460.0,0.00022191,4]
[366107478,1750067442521,-460.0,0.00022191,4]
[366107479,1750067442530,-460.0,0.00022191,4]
[366107480,1750067442540,-460.0,0.00022191,4]
[366107481,1750067442550,-460.0,0.00022191,4]
[366107482,1750067442559,-460.0,0.00022191,4]
[366107483,1750067442568,-460.0,0.00022191,4]
[366107484,1750067442578,-460.0,0.00022191,4]
[366107485,1750067442587,-460.0,0.00022191,4]
[366107486,1750067442596,-460.0,0.00022191,4]
[366107488,1750067442605,-460.0,0.00022191,4]
[366107490,1750067442615,-460.0,0.00022191,4]
[366107491,1750067442624,-460.0,0.00022191,4]
[366107492,1750067442635,-463.93162997,0.00022191,4]
[366107493,1750067442645,-460.0,0.00022191,4]
[366107494,1750067442654,-460.0,0.00022191,4]
[366107495,1750067442663,-460.0,0.00022191,4]
[366107496,1750067442672,-460.0,0.00022191,4]
[366107497,1750067442682,-460.0,0.00022191,4]
[366107498,1750067442691,-460.0,0.00022191,4]
[366107499,1750067442700,-460.0,0.00022191,4]
[366107500,1750067442710,-151.0,0.00022191,7]
[366107501,1750067442720,-460.0,0.00022191,4]
[366107502,1750067442729,-151.0,0.00022191,7]
[366107504,1750067442738,-460.0,0.00022191,4]
[366107506,1750067442747,-460.0,0.00022191,4]
[366107507,1750067442757,-460.0,0.00022191,4]
[366107508,1750067442766,-460.0,0.00022191,4]
[366107509,1750067442775,-460.0,0.00022191,4]
[366107510,1750067442785,-460.0,0.00022191,4]
[366107511,1750067442793,-460.0,0.00022191,4]
[366107512,1750067442803,-420.0,0.00022191,4]
[366107513,1750067442812,-460.0,0.00022191,4]
[366107514,1750067442822,-460.0,0.00022191,4]
[366107515,1750067442831,-460.0,0.00022191,4]
[366107516,1750067442840,-460.0,0.00022191,4]
[366107517,1750067442850,-466.66483288,0.00022191,4]
[366107518,1750067442859,-460.0,0.00022191,4]
[366107519,1750067442868,-460.0,0.00022191,4]
[366107520,1750067442878,-460.0,0.00022191,4]
[366107521,1750067442887,-460.0,0.00022191,4]
[366107522,1750067442896,-460.0,0.00022191,4]
[366107523,1750067442906,-460.0,0.00022191,4]
[366107524,1750067442915,-1112.77,0.00022191,4]
[366107525,1750067442924,-460.0,0.00022191,4]
[366107526,1750067442934,-460.0,0.00022191,4]
[366107527,1750067442945,-460.0,0.00022191,4]
[366107528,1750067442955,-460.0,0.00022191,4]
[366107529,1750067442965,-460.0,0.00022191,4]
[366107530,1750067442974,-460.0,0.00022191,4]
[366107531,1750067442983,-460.0,0.00022191,4]
[366107532,1750067442993,-460.0,0.00022191,4]
[366107533,1750067443002,-460.0,0.00022191,4]
[366107534,1750067443011,-430.0,0.00022191,4]
[366107535,1750067443020,-464.82572049,0.00022191,4]
[366107536,1750067443029,-320.0,0.00022191,4]
[366107537,1750067443040,-874.2,0.00022191,4]
[366107538,1750067443049,-607.7789417,0.00022191,4]
[366107540,1750067443058,-460.0,0.00022191,4]
[366107542,1750067443068,-460.0,0.00022191,4]
[366107544,1750067443081,-460.0,0.00022191,4]
[366107546,1750067443090,-155.01104232,0.00022191,4]
[366107548,1750067443100,-460.0,0.00022191,4]
[366107550,1750067443110,-460.0,0.00022191,4]
[366107552,1750067443119,-476.82429389,0.00022191,4]
[366107554,1750067443128,-430.0,0.00022191,4]
[366107556,1750067443138,-460.0,0.00022191,4]
[366107558,1750067443147,-460.0,0.00022191,4]
[366107560,1750067443157,-346.31845381,0.00022191,4]
[366107562,1750067443166,-460.0,0.00022191,4]
[366107564,1750067443175,-460.0,0.00022191,4]
[366107566,1750067443184,-359.43802307,0.00022191,4]
[366107568,1750067443193,-650.5,0.00022191,4]
[366107571,1750067443203,-460.0,0.00022191,4]
[366107573,1750067443212,-460.0,0.00022191,4]
[366107575,1750067443221,-460.0,0.00022191,4]
[366107577,1750067443230,-399.10224278,0.00022191,4]
[366107579,1750067443241,-432.39868925,0.00022191,4]
[366107581,1750067443250,-964.0,0.00022196,2]
[366107583,1750067443259,-653.0,0.00022196,2]
[366107585,1750067443268,-2160.0,0.00022196,2]
[366107587,1750067443278,-465.621,0.00022196,2]
[366107589,1750067443287,-197.06690157,0.000222,69]
[366107590,1750067443297,-809.93,0.00022259,7]
[366107591,1750067443306,-769.77043432,0.00022279,6]
[366107593,1750067443316,-809.93,0.00022372,7]
[366107596,1750067443326,-275.72868,0.00022372,7]
[366107598,1750067443349,-275.72868,0.00022372,7]
[366107613,1750067443498,-151.0,0.00022401,7]
[366107615,1750067443508,-1167.8,0.00022427,3]
[366107617,1750067443518,-583.9,0.00022427,3]
[366107619,1750067443527,-215.0738,0.00022436,2]
[366107621,1750067443537,-4772.96,0.00022461,2]
[366107623,1750067443547,-151.0,0.00022465,7]
[366107625,1750067443557,-151.0,0.00022465,7]
[366107627,1750067443567,-198.349583,0.00022465,7]
[366107629,1750067443577,-198.349583,0.00022465,7]
[366107631,1750067443587,-182.6124,0.00022465,7]
[366107633,1750067443596,-182.6124,0.00022465,7]
[366107635,1750067443606,-151.0,0.00022465,7]
[366107637,1750067443615,-222.24507458,0.00022465,4]
[366107639,1750067443625,-1277.663851,0.00022465,2]
[366107641,1750067443635,-471.12,0.00022465,4]
[366107643,1750067443644,-419.59784364,0.00022465,4]
[366107645,1750067443654,-151.0,0.00022465,7]
[366107647,1750067443664,-151.0,0.00022465,7]
[366107649,1750067443674,-151.0,0.00022465,7]
[366107651,1750067443684,-370.0,0.00022465,4]
[366107653,1750067443694,-365.93861265,0.00022465,4]
[366107655,1750067443704,-460.0,0.00022465,4]
[366107657,1750067443714,-151.0,0.00022465,7]
[366107659,1750067443724,-151.0,0.00022465,7]
[366107661,1750067443734,-151.0,0.00022465,7]
[366107663,1750067443743,-151.0,0.00022465,7]
[366107665,1750067443754,-460.0,0.00022465,4]
[366107667,1750067443763,-460.0,0.00022465,4]
[366107669,1750067443773,-407.05904662,0.00022465,4]
[366107671,1750067443783,-411.50000349,0.00022465,4]
[366107673,1750067443793,-460.0,0.00022465,4]
[366107675,1750067443803,-492.77548399,0.00022465,4]
[366107677,1750067443812,-460.0,0.00022465,4]
[366107679,1750067443822,-460.0,0.00022465,2]
[366107681,1750067443831,-460.0,0.00022465,4]
[366107683,1750067443841,-460.0,0.00022465,4]
[366107685,1750067443851,-460.0,0.00022465,4]
[366107687,1750067443861,-460.0,0.00022465,4]
[366107689,1750067443871,-440.0,0.00022465,4]
[366107691,1750067443881,-460.0,0.00022465,4]
[366107693,1750067443890,-460.0,0.00022465,4]
[366107695,1750067443916,-460.0,0.00022465,4]
[366107697,1750067443926,-460.0,0.00022465,4]
[366107699,1750067443936,-314.38222581,0.00022465,4]